Cogmind - Beta 15 @@@ ROGUE MODE // 2025.08.07 @ 14:22:12 Player: JuustuToug Result: Destroyed by LE-BS9(R) with Subdweller Machine Gun Performance ------------- Evolutions (0) 0 Regions Visited (2) 400 Robots Destroyed (16) 80 Value Destroyed (574) 574 Prototype IDs (3) 60 Alien Tech Used (0) 0 Bonus (0) 0 TOTAL SCORE: 1114 Bonus ------- None Cogmind --------- Core Integrity 0/250 Matter 254/300 Energy 200/200 System Corruption 0% Temperature Cool (0) Movement Core (450) Ox8 Location -10/Subcaves Parts ------- > --- POWER (1+3) ------ Subdweller Power Source Subdweller Power Source (+) > --- PROPULSION (2) --- (None) > --- UTILITY (2) ------ Disposable Heat Sink Power Bank > --- WEAPON (2) ------- Subdweller Beam Cannon Barrage Gun > --- INVENTORY (5) ---- Signal Interpreter Subdweller Shrapnel Launcher Subdweller Shrapnel Launcher Makeshift Hammer Scrap Shield Fragment (13) Peak State ------------ > --- POWER ------------ Subdweller Power Source Subdweller Power Source > --- PROPULSION ------- Subdweller Monowheel > --- UTILITY ---------- Disposable Heat Sink Power Bank > --- WEAPON ----------- Subdweller Beam Cannon Barrage Gun > --- INVENTORY -------- Signal Interpreter Subdweller Shrapnel Launcher Subdweller Shrapnel Launcher Makeshift Hammer Scrap Shield Fragment [Rating: 23] Favorites ----------- Power Subdweller Power Source Engine Subdweller Power Source Propulsion Aluminum Leg Leg Aluminum Leg Wheel Subdweller Monowheel Utility Subdweller Optics Device Subdweller Optics Storage Small Storage Unit Protection Light Armor Plating Weapon Light Assault Rifle Energy Gun Small Laser Energy Cannon Subdweller Beam Cannon Ballistic Gun Light Assault Rifle Launcher Subdweller Shrapnel Launcher Build | -11 -10 -10 ------- Run | Yrd Mat Sub Slots Evolved . | . . . Power . | . . . Propulsion . | . . . Utility . | . . . Weapon . | . . . Parts Attached 24 | 6 3 15 Power 5 | 1 1 3 Engine 5 | 1 1 3 Core . | . . . Reactor . | . . . Propulsion 4 | 2 1 1 Treads . | . . . Leg 3 | 2 1 . Wheel 1 | . . 1 Hover . | . . . Flight . | . . . Utility 5 | 1 1 3 Device 3 | . . 3 Storage 1 | 1 . . Processor . | . . . Hackware . | . . . Protection 1 | . 1 . Artifact . | . . . Weapon 10 | 2 . 8 Energy Gun 1 | . . 1 Energy Cannon 2 | . . 2 Ballistic Gun 3 | 2 . 1 Ballistic Cannon . | . . . Launcher 4 | . . 4 Special Weapon . | . . . Impact Weapon . | . . . Slashing Weapon . | . . . Piercing Weapon . | . . . Special Melee Weapon . | . . . Unidentified Prototypes 1 | . . 1 Parts Lost 14 | . 6 8 Power 3 | . 2 1 Propulsion 4 | . 2 2 Utility 3 | . 1 2 Weapon 4 | . 1 3 Highest Loss Streak 6 | . 5 6 To Critical Strikes 2 | . . 2 Average Backups 3 | 2 3 3 Power . | . . . Propulsion . | . . . Utility 1 | . . 2 Weapon 1 | 1 1 1 Tool/Special . | . . . Unused Backups 3 | . . 3 Power . | . . . Propulsion . | . . . Utility 2 | . . 2 Weapon 1 | . . 1 Tool/Special . | . . . Average Slot Usage (%) 76 | . 98 66 Engine 13 | . 14 12 Leg 10 | . 28 2 Wheel 6 | . . 9 Device 12 | . . 17 Storage 6 | . 14 2 Protection 4 | . 12 . Energy Gun 1 | . . 2 Energy Cannon 3 | . . 5 Ballistic Gun 11 | . 28 3 Launcher 6 | . . 9 Peak Build Rating 23 | 6 7 23 Average Rating 13 | 3 6 17 On Entrance 3 | . 6 3 Naked Turns . | . . . Heaviest Build 31 | 12 15 31 Greatest Support 20 | 20 20 20 Greatest Overweight (x) 8 | . . 8 Average Overweight (x) . | . . . Largest Inventory Capacity 8 | 8 8 8 Average Capacity 6 | 6 8 5 Most Carried 6 | 4 6 5 Average Carried 4 | 2 3 4 Final Capacity 8 | 8 8 5 Final Carried 5 | 2 5 5 Class Distribution -------------------- 94% | Mutant 5% | Scavenger-Mutant Dominant Class ---------------- Mutant | -10/Materials Mutant | -10/Subcaves Resources | -11 -10 -10 ----------- Run | Yrd Mat Sub Matter Collected 646 | 241 120 285 Remotely . | . . . Salvage Created 413 | . 242 171 Parts 29 | . 19 10 Haulers Intercepted 1 | . 1 . Recyclers Shooed . | . . . Parts Field Recycled . | . . . Retrieved Matter . | . . . Parts Self-Destructed 10 | . . 10 Prevented . | . . . Kills | -11 -10 -10 ------- Run | Yrd Mat Sub Combat Hostiles Destroyed 14 | . 5 9 Guns 7 | . 5 2 Cannons 1 | . . 1 AOE 6 | . . 6 Classes Destroyed 4 | . 3 1 Hauler 1 | . 1 . Watcher 1 | . 1 . Grunt 5 | . 5 . Subdweller 9 | . . 9 Best Kill Streak 3 | . 3 3 Combat Bots Only 3 | . 3 3 Max Kills in Single Turn 2 | . 1 2 Gunslinging . | . . . Exploded 2 | . . 2 Melee . | . . . Uniques/NPCs Destroyed . | . . . Combat | -11 -10 -10 -------- Run | Yrd Mat Sub Hostile Shots Fired 149 | . 91 58 Missed 44 | . 23 21 Hits 105 | . 68 37 Projectile 105 | . 68 37 Critical Strikes 3 | . . 3 Damage Taken 1522 | . 700 822 Core 264 | . 96 168 Absorbed by Shields . | . . . Core Remaining (%) 100 | 100 . . Volleys Fired 68 | . 43 25 Largest 2 | . 2 2 Hottest 160 | . 40 160 Shots Fired 130 | . 86 44 Gun 106 | . 86 20 Cannon 10 | . . 10 Launcher 14 | . . 14 Special . | . . . Kinetic 102 | . 86 16 Thermal 19 | . . 19 Explosive 9 | . . 9 Electromagnetic . | . . . Robot Hit Streak 26 | . 24 26 Robot Miss Streak 4 | . 4 1 Penetration Max . | . . . Secondary Targets 1 | . 1 . Max Gunslinging Chain 1 | . 1 . Shots Hit Robots 102 | . 63 39 Core Hits 38 | . 20 18 Critical Kills 1 | . . 1 Critical Parts Destroyed 1 | . 1 . Critical Strikes 2 | . 1 1 Destroy 2 | . 1 1 Melee Attacks . | . . . Impact . | . . . Slashing . | . . . Piercing . | . . . Sneak Attacks . | . . . Combat Hostiles . | . . . Follow-up Attacks . | . . . Damage Inflicted 1870 | . 492 1378 Guns 665 | . 492 173 Cannons 190 | . . 190 Explosions 1015 | . . 1015 Melee . | . . . Ramming . | . . . Kinetic 1003 | . 492 511 Thermal 278 | . . 278 Explosive 589 | . . 589 Electromagnetic . | . . . Impact . | . . . Slashing . | . . . Piercing . | . . . Highest Corruption . | . . . Average Corruption . | . . . Corruption Purged . | . . . Corruption Blocked . | . . . Overload Shots . | . . . Overflow Damage 1 | . . 1 Projectiles . | . . . Explosions 1 | . . 1 Melee . | . . . Knockbacks . | . . . Impact . | . . . Kinetic . | . . . Secondary . | . . . Self-Inflicted Damage 24 | . . 24 Shots 1 | . . 1 Rammed . | . . . Targets Rammed . | . . . Kicked . | . . . Crushed . | . . . Highest Temperature 101 | . 93 101 Average Temperature 40 | . 39 49 Received Heat Transfer 342 | . 249 93 Siege Activations . | . . . Martial Activations . | . . . Shielding Activations . | . . . Robots Disrupted . | . . . Combat Hostiles . | . . . Robots Corrupted . | . . . Combat Hostiles . | . . . Parts Fried . | . . . Impact Corruptions . | . . . Robots Melted . | . . . Combat Hostiles . | . . . Parts Melted 1 | . . 1 Heat Transferred 459 | . . 459 Parts Sabotaged . | . . . Parts Stolen . | . . . Parts Stripped . | . . . Power Chain Reactions . | . . . Alert | -11 -10 -10 ------- Run | Yrd Mat Sub Maximum Alert Level . | . . . Low Security (%) 100 | 100 100 . Level 1 . | . . . Level 2 . | . . . Level 3 . | . . . Level 4 . | . . . Level 5 . | . . . High Security . | . . . Max Security . | . . . Peak Influence 72 | . 72 . Initial . | . . . Average 15 | . 16 . Influence Increases 148 | . 148 . Destroy 0b10 Robot/C 100 | . 100 . Destroy 0b10 Robot/NC 10 | . 10 . Destroy Leader 24 | . 24 . Successful Hack 14 | . 14 . Influence Decreases 148 | . 148 . Time Decay 116 | . 116 . Lost Part 32 | . 32 . Squads Dispatched . | . . . Investigation . | . . . Extermination . | . . . Reinforcement . | . . . Assault . | . . . Garrison . | . . . Intercept . | . . . Searches Triggered . | . . . Construction Impeded . | . . . Haulers Reinforced . | . . . Active Scanning Responses . | . . . Cargo Convoy Interrupts . | . . . Stealth | -11 -10 -10 --------- Run | Yrd Mat Sub Distress Signals 1 | . 1 . Communications Jammed . | . . . Distress Signals . | . . . Times Spotted 19 | . 10 9 Peak Tracking Total 3 | . 3 3 Tactical Retreats . | . . . Traps | -11 -10 -10 ------- Run | Yrd Mat Sub Traps Triggered . | . . . Indirectly . | . . . Trap Hack Attempts . | . . . Triggered . | . . . Disarmed . | . . . Reprogrammed . | . . . Reused . | . . . Traps Extracted . | . . . Installed . | . . . Triggered . | . . . Machines | -11 -10 -10 ---------- Run | Yrd Mat Sub Machines Disabled . | . . . Max in Single Turn . | . . . Machines Repaired . | . . . Machines Dismantled . | . . . Machines Sabotaged . | . . . Overloaded Fab Kills . | . . . Hacking | -11 -10 -10 --------- Run | Yrd Mat Sub Machines Accessed 5 | . 4 1 Terminals 4 | . 4 . Fabricators . | . . . Repair Stations . | . . . Recycling Units . | . . . Scanalyzers . | . . . Garrison Access . | . . . Total Hacks 16 | . 12 4 Successful 12 | . 8 4 Failed 4 | . 4 . Catastrophic . | . . . Database Lockouts . | . . . Manual . | . . . Terminals 12 | . 12 . Fabricators . | . . . Repair Stations . | . . . Recycling Units . | . . . Scanalyzers . | . . . Garrison Access . | . . . Terminal Hacks 12 | . 8 4 Record 4 | . . 4 Prototype ID Bank 1 | . 1 . Branch Access Points 1 | . 1 . Emergency Access Points 1 | . 1 . Locate Traps 1 | . 1 . Security Status 1 | . 1 . Registered Components 1 | . 1 . Zone Layout 2 | . 2 . Fabricator Hacks . | . . . Repair Station Hacks . | . . . Recycling Unit Hacks . | . . . Scanalyzer . | . . . Garrison Access Hacks . | . . . Unauthorized Hacks . | . . . Terminals . | . . . Fabricators . | . . . Repair Stations . | . . . Recycling Units . | . . . Scanalyzers . | . . . Garrison Access . | . . . Data Cores Recovered . | . . . Used . | . . . Hacking Detections 4 | . 4 . Full Trace Events . | . . . Feedback Events . | . . . Feedback Blocked . | . . . Robot Schematics Acquired . | . . . Robots Built . | . . . Authchips . | . . . Time . | . . . Total Robot Build Rating . | . . . Part Schematics Acquired . | . . . Parts Built . | . . . Authchips . | . . . Time . | . . . Total Part Build Rating . | . . . Parts Repaired . | . . . Time . | . . . Parts Recycled . | . . . Recycled Matter . | . . . Retrieved Matter . | . . . Retrieved Components . | . . . Parts Scanalyzed . | . . . Part Schematics Acquired . | . . . Parts Damaged . | . . . Bothacking | -11 -10 -10 ------------ Run | Yrd Mat Sub Used RIF Installer . | . . . Robots Hacked . | . . . Non-combat . | . . . Combat . | . . . Robot Hacks Applied . | . . . Relay Couplers Released . | . . . Fabnet Peak Effective % . | . . . Robots Rewired . | . . . Allies Hacked . | . . . Hacks Repelled . | . . . Allies | -11 -10 -10 -------- Run | Yrd Mat Sub Total Allies . | . . . Largest Group . | . . . Highest-Rated Group . | . . . Highest-Rated Ally . | . . . Total Orders . | . . . Ally Attacks . | . . . Total Damage . | . . . Kills . | . . . Allies Corrupted . | . . . Allies Melted . | . . . Intel | -11 -10 -10 ------- Run | Yrd Mat Sub Active Infowar (turns) 385 | . . 385 Optics 385 | . . 385 Robot Analysis Total . | . . . Derelict Logs Recovered . | . . . Drone Launches . | . . . Drone Recoveries . | . . . Exploration | -11 -10 -10 ------------- Run | Yrd Mat Sub Turns Passed 1873 | 61 576 1236 Spaces Moved 1216 | 49 363 804 Core 18 | 16 . 2 Treads . | . . . Legs 418 | 33 363 22 Wheels 780 | . . 780 Hover . | . . . Flight . | . . . Fastest Speed 50 | 50 120 110 Average Speed 118 | 97 120 119 Slowest Speed 450 | 120 120 450 Overloaded Moves . | . . . Propulsion Burnouts . | . . . Robots Hopped . | . . . Potential Cave-ins . | . . . Cave-ins Triggered . | . . . Exploration Rate (%) 35 | 4 60 42 Regions Visited 2 Branch Regions 1 Pre-discovered Areas 1 | . . 1 Known Exits Taken . | . . . Unknown Exits Taken 2 | 1 1 . Scrap Searched 2 | . . 2 Spaces Dug . | . . . Terrain Destroyed 110 | . . 110 Melee . | . . . Projectile 2 | . . 2 AOE 108 | . . 108 Terrain Rammed . | . . . Walls Destroyed . | . . . Machines Disabled . | . . . Actions | -11 -10 -10 --------- Run | Yrd Mat Sub Total 1533 | 62 434 1037 Wait 195 | . 20 175 Move 1214 | 48 362 804 Hop . | . . . Pick Up 27 | 8 6 13 Fast Attach 1 | . . 1 Attach 19 | 6 3 10 Detach . | . . . Swap 6 | . . 6 Drop 3 | . . 3 Fire 68 | . 43 25 Melee . | . . . Ram . | . . . Kick . | . . . Crush . | . . . Escape Stasis . | . . . Rewire . | . . . Trap . | . . . Miscellaneous . | . . . Route ------- -11/Scrapyard -10/Materials (discovered 4 exits: [*Mat x2] / Min / *Sub) -10/Subcaves History --------- Turn | Location | Event 5 | -11/Scrapyard | Discovered new exit (range 15) 62 | -11/Scrapyard | Entered Materials 303 | -10/Materials | Build established: Mutant 312 | -10/Materials | Identified exit to Mines 385 | -10/Materials | Discovered new exit (range 5) 400 | -10/Materials | Discovered new exit (range 9) 577 | -10/Materials | Discovered new exit (range 7) 638 | -10/Materials | Entered Subcaves 667 | -10/Subcaves | Lost 5 parts (1p2n1u1w) 812 | -10/Subcaves | A swath of the cavern ceiling suddenly collapsed 816 | -10/Subcaves | A Subdweller sparked back to life 816 | -10/Subcaves | A Subdweller sparked back to life 816 | -10/Subcaves | A Subdweller sparked back to life 834 | -10/Subcaves | Core integrity fell below 50% 853 | -10/Subcaves | Core integrity fell below 20% 858 | -10/Subcaves | Learned location of Zion (-7) 858 | -10/Subcaves | Met a Zionite searching for "candidates" 872 | -10/Subcaves | Found Prototype Device 873 | -10/Subcaves | Identified Power Bank 874 | -10/Subcaves | Attached Power Bank, gained temporary slots: Power x3 890 | -10/Subcaves | Lost 6 parts (1p1n1u3w) 1225 | -10/Subcaves | Shifting Twisted Machinery released Sub. Shrapnel Launcher 1226 | -10/Subcaves | Shifting Twisted Machinery released Sub. Power Source 1270 | -10/Subcaves | Shifting Twisted Machinery released Sub. Shrapnel Launcher 1724 | -10/Subcaves | Disturbed a concealed Subdweller 1817 | -10/Subcaves | Visited Clippyterm 1820 | -10/Subcaves | Learned Factory trap positions 1820 | -10/Subcaves | Learned Factory garrison access intel 1874 | -10/Subcaves | Destroyed by LE-BS9(R) with Subdweller Machine Gun Last Messages --------------- 01817_ The door opens automatically. 01820_ Connecting with Clippyterm... 01820_ Current location identified: Subcaves >>Record "Banana Peels" It looks like you're afraid of the consquences of stepping on the wrong spot, would you like help? Data stored: Factory trap records. >>Record! "Tag" It looks like you don't want to be "it," would you like help? Data stored: Factory garrison access intel. >>Record "Permadeath" It looks like you're defining "roguelike," quit while you're ahead. Please. >>Record "Hexidium" It looks like you're searching for the Unchained HQ. I could tell you where it is but then I'd have to kill you. 01866_ Sub. Monowheel destroyed. Map ----- +----------------------------------------------------+ | | | | | | | ?????????????????????????????????????????????? | | ?????????????????????????????????????????????? | | ?????????????????????????????????????????????? | | ?????????????????????????????????????????????? | | ?????????????????????????????????????????????? | | ?????????????????????????????????????????????? | | ?????????????????????????????????????????????? | | ?????????????????????????????????????????????? | | ?????????????????????????????????????????????? | | ?????????????????????????????????????????????? | | ?????????????????????????????????????????????? | | ?????????????????????????????????????????????? | | ?????????????????????????????????????????????? | | ?????????????????????????????????????????????? | | ?????????????????????????????????????????????? | | ?????????????????????????????????????????????? | | ?????????????????????????????????????????????? | | ???????????????????????###???????????????????? | | ???????????????????###?# #???????????????????? | | ????????????????#### ### #??????????????????## | | ????????????????# ## #?????????????????## | | ???????????????## ##????????????????# | | ??????????"????# R @ ##???????????????# | | ??????????""?###< ## ##??????????????## | | ???????????# #"" ?## #???????????????# | | ???????????# ??# #???????????????## | | ???????????? ??# ##???????????????# | | ???????????? #" ?## #???????????????? | | ???????????## ?# ### #???????????????? | | ???????????? ??# #???????????????? | | ???????????#???## ##???????????????? | | ????????????????# #????????????????? | | ???????????????## ## #####????????????????? | | ??????????????## ##????????????????????? | | ??????????????# #????????????????????? | | ??????????????# # # ####??????????????????? | | ??????????????## ?## #??????????????????? | | ???????????????#???## ##??????????????????? | | ??????????????????## ###???????????????????? | | ?????????????????## ##?????????????????????? | | ?????????????????# #??????????????????????? | | ?????????????????# ##??????????????????????? | | ?????????????????# ##??????????????????????? | | ????????????????## #??????????????????????? | | ???????????????## #??????????????????????? | | ??????????????## ##?????????????????????? | | ??????????????# ##????????????????????? | +----------------------------------------------------+ Best States ------------- Heat Dissipation 25 Coolant Potential 50 Energy Generation 25 Energy Capacity 300 Matter Stores 300 Matter Capacity 300 Sight Range 21 Terrain Scan Density 10 Armor Coverage 150 Evasion (%) 55 Item Schematics ----------------- None Robot Schematics ------------------ None Fabricated ------------ Nothing Repaired ---------- Nothing Alien Tech Used ----------------- None Achievements -------------- None Challenges ------------ None Game ------ Seed LightpackSupercompositeBeam Manual? 0 Play Time 00:11:13 Cumulative 46.1 hours Start 2025.08.07 @ 14:04:53 End 2025.08.07 @ 14:22:12 Sessions 1 Manual Loads 0 Difficulty Rogue Special Mode None Game No. 31 Rogue 31 Adventurer 0 Explorer 0 Win Type - Total 1 Types 1/0/0/0/0/0/0/0/0/0 Lore% 44 Gallery% 36 Achievement% 34 Wizard Run 0 Options --------- Layout 1 ASCII 0 Keyboard 0 Movement Mouse Keybinds 0 Fullscreen 1 Font 24/Smallcaps Map View 50x35 Zoom Use 0% Tactical HUD 1 Map Filters NONE Filters NONE Steam 1 RUN: 47b88ecf-e4c5-4b6d-b0ec-e5dc72815520